Cogmind - Beta 9.4 @@@ ROGUE MODE // 2020.02.23 @ 18:30:47 Player: Hert Result: Destroyed by as-82404 with Assembled Rifle Performance ------------- Evolutions (0) 0 Regions Visited (2) 400 Robots Destroyed (19) 95 Value Destroyed (405) 405 Prototype IDs (0) 0 Alien Tech Used (0) 0 Bonus (0) 0 TOTAL SCORE: 900 Bonus ------- None Cogmind --------- Core Integrity 0/250 Matter 209/300 Energy 100/100 System Corruption 0% Temperature Cool (0) Movement Core (950) Ox18 Location -10/Mines Parts ------- > --- POWER (1) -------- (None) > --- PROPULSION (2) --- (None) > --- UTILITY (2) ------ Large Storage Unit High-capacity Storage Unit > --- WEAPON (2) ------- Flak Cannon Grenade Launcher > --- INVENTORY (18) --- Light Ion Engine Light Treads Light Treads Light Treads Light Treads Advanced Terrain Scanner Targeting Computer Weapon Shielding Weapon Shielding Light Assault Rifle Light Assault Rifle Peak State ------------ > --- POWER ------------ Light Ion Engine > --- PROPULSION ------- Light Treads Light Treads > --- UTILITY ---------- Large Storage Unit High-capacity Storage Unit > --- WEAPON ----------- Flak Cannon Grenade Launcher > --- INVENTORY -------- Light Ion Engine Light Treads Light Treads Light Treads Light Treads Advanced Terrain Scanner Targeting Computer Weapon Shielding Weapon Shielding Assault Rifle Light Assault Rifle Light Assault Rifle [Rating: 10] Favorites ----------- Power Light Ion Engine Engine Light Ion Engine Propulsion Light Treads Treads Light Treads Utility High-capacity Storage Unit Storage High-capacity Storage Unit Weapon Assault Rifle Energy Gun Medium Laser Ballistic Gun Assault Rifle Ballistic Cannon Flak Cannon Launcher Grenade Launcher Build | -11 -10 -10 ------- Run | Scr Mat Min Slots Evolved . | . . . Power . | . . . Propulsion . | . . . Utility . | . . . Weapon . | . . . Parts Attached 14 | 6 5 3 Power 1 | 1 . . Engine 1 | 1 . . Core . | . . . Reactor . | . . . Propulsion 4 | 2 2 . Treads 4 | 2 2 . Leg . | . . . Wheel . | . . . Hover . | . . . Flight . | . . . Utility 3 | 1 2 . Device . | . . . Storage 3 | 1 2 . Processor . | . . . Hackware . | . . . Protection . | . . . Artifact . | . . . Weapon 6 | 2 1 3 Energy Gun 1 | 1 . . Energy Cannon . | . . . Ballistic Gun 2 | 1 . 1 Ballistic Cannon 1 | . . 1 Launcher 2 | . 1 1 Special Weapon . | . . . Impact Weapon . | . . . Slashing Weapon . | . . . Piercing Weapon . | . . . Special Melee Weapon . | . . . Unidentified Prototypes . | . . . Parts Lost 4 | . . 4 Power 1 | . . 1 Propulsion 2 | . . 2 Utility . | . . . Weapon 1 | . . 1 Highest Loss Streak 3 | . . 3 Average Slot Usage (%) 97 | . 98 96 Engine 13 | . 14 12 Treads 27 | . 27 26 Storage 27 | . 26 28 Ballistic Gun 13 | . 14 11 Ballistic Cannon 5 | . . 13 Launcher 8 | . 13 2 Naked Turns . | . . . Heaviest Build 59 | 11 56 59 Greatest Support 40 | 40 40 40 Greatest Overweight (x) 18 | . 14 18 Average Overweight (x) . | . . 1 Largest Inventory Capacity 18 | 6 18 18 Average Capacity 15 | 5 15 18 Most Carried 12 | 6 10 12 Average Carried 8 | 3 7 11 Final Capacity 18 | 6 18 18 Final Carried 11 | 4 10 11 Class Distribution -------------------- 100% | Mutant Dominant Class ---------------- Mutant | -10/Materials Mutant | -10/Mines Resources | -11 -10 -10 ----------- Run | Scr Mat Min Matter Collected 641 | 214 275 152 Remotely . | . . . Salvage Created 236 | . 232 4 Parts 31 | . 31 . Haulers Intercepted . | . . . Recyclers Shooed . | . . . Parts Field Recycled . | . . . Retrieved Matter . | . . . Parts Self-Destructed . | . . . Prevented . | . . . Kills | -11 -10 -10 ------- Run | Scr Mat Min Combat Hostiles Destroyed 13 | . 11 2 Guns 1 | . . 1 AOE 12 | . 11 1 Classes Destroyed 8 | . 6 2 Builder 2 | . 2 . Tunneler 1 | . 1 . Operator 1 | . 1 . Watcher 2 | . 2 . Swarmer 5 | . 5 . Grunt 6 | . 6 . Demolisher 1 | . . 1 Assembled 1 | . . 1 Best Kill Streak 7 | . 7 1 Combat Bots Only 3 | . 3 1 Max Kills in Single Turn 3 | . 3 1 Gunslinging . | . . . Exploded 3 | . 3 1 Melee . | . . . Uniques/NPCs Destroyed . | . . . Combat | -11 -10 -10 -------- Run | Scr Mat Min Damage Taken 1101 | . 217 884 Core 252 | . 50 202 Absorbed by Shields . | . . . Core Remaining (%) 100 | 100 . . Volleys Fired 38 | . 27 11 Largest 2 | . 2 2 Hottest 74 | . 70 74 Shots Fired 71 | . 51 20 Gun 35 | . 30 5 Cannon 11 | . . 11 Launcher 25 | . 21 4 Special . | . . . Kinetic 43 | . 27 16 Thermal 3 | . 3 . Explosive 25 | . 21 4 Electromagnetic . | . . . Robot Hit Streak 9 | . 9 6 Robot Miss Streak 6 | . 5 6 Penetration Max . | . . . Secondary Targets . | . . . Shots Hit Robots 35 | . 21 14 Core Hits 35 | . 24 11 Critical Hits 1 | . 1 . Critical Kills . | . . . Critical Parts Destroyed 1 | . 1 . Melee Attacks . | . . . Impact . | . . . Slashing . | . . . Piercing . | . . . Sneak Attacks . | . . . Combat Hostiles . | . . . Follow-up Attacks . | . . . Damage Inflicted 1349 | . 1153 196 Guns 153 | . 121 32 Cannons 134 | . . 134 Explosions 1062 | . 1032 30 Melee . | . . . Ramming . | . . . Kinetic 287 | . 121 166 Thermal . | . . . Explosive 1062 | . 1032 30 Electromagnetic . | . . . Impact . | . . . Slashing . | . . . Piercing . | . . . Highest Corruption . | . . . Average Corruption . | . . . Corruption Purged . | . . . Overload Shots . | . . . Overflow Damage 52 | . 52 . Projectiles . | . . . Explosions 52 | . 52 . Melee . | . . . Knockbacks 7 | . . 7 Impact . | . . . Kinetic 6 | . . 6 Secondary 1 | . . 1 Self-Inflicted Damage 113 | . 113 . Shots 5 | . 5 . Rammed . | . . . Targets Rammed . | . . . Kicked . | . . . Crushed . | . . . Highest Temperature 35 | . 27 35 Average Temperature 10 | . 11 9 Received Heat Transfer 64 | . 24 40 Siege Activations . | . . . Robots Corrupted . | . . . Combat Hostiles . | . . . Parts Fried . | . . . Impact Corruptions . | . . . Robots Melted . | . . . Combat Hostiles . | . . . Parts Melted . | . . . Heat Transferred . | . . . Parts Sabotaged . | . . . Parts Stolen . | . . . Parts Stripped . | . . . Power Chain Reactions . | . . . Missiles Intercepted . | . . . Alert | -11 -10 -10 ------- Run | Scr Mat Min Peak Influence 252 | . 252 80 Average Influence 91 | . 122 56 Maximum Alert Level 1 | . 1 . Low Security (%) 96 | 100 93 100 Level 1 3 | . 6 . Level 2 . | . . . Level 3 . | . . . Level 4 . | . . . Level 5 . | . . . High Security . | . . . Max Security . | . . . Squads Dispatched 1 | . 1 . Investigation . | . . . Extermination . | . . . Reinforcement 1 | . 1 . Assault . | . . . Garrison . | . . . Intercept . | . . . Construction Impeded . | . . . Haulers Reinforced . | . . . Stealth | -11 -10 -10 --------- Run | Scr Mat Min Distress Signals 2 | . 2 . Communications Jammed . | . . . Distress Signals . | . . . Times Spotted 42 | . 21 21 Peak Tracking Total 14 | . 3 14 Tactical Retreats 4 | . 3 1 Traps | -11 -10 -10 ------- Run | Scr Mat Min Traps Triggered . | . . . Indirectly . | . . . Trap Hack Attempts . | . . . Triggered . | . . . Disarmed . | . . . Reprogrammed . | . . . Reused . | . . . Traps Extracted . | . . . Installed . | . . . Triggered . | . . . Machines | -11 -10 -10 ---------- Run | Scr Mat Min Machines Disabled 2 | . 2 . Max in Single Turn 2 | . 2 . Machines Sabotaged . | . . . Garrisons Compromised . | . . . Overloaded Fab Kills . | . . . Fab Network Shutdowns . | . . . Hacking | -11 -10 -10 --------- Run | Scr Mat Min Machines Accessed 1 | . . 1 Terminals . | . . . Fabricators . | . . . Repair Stations . | . . . Recycling Units . | . . . Scanalyzers . | . . . Garrison Access . | . . . Total Hacks 1 | . . 1 Successful 1 | . . 1 Failed . | . . . Catastrophic . | . . . Database Lockouts . | . . . Manual . | . . . Terminals . | . . . Fabricators . | . . . Repair Stations . | . . . Recycling Units . | . . . Scanalyzers . | . . . Garrison Access . | . . . Terminal Hacks 1 | . . 1 Open Door 1 | . . 1 Fabricator Hacks . | . . . Repair Station Hacks . | . . . Recycling Unit Hacks . | . . . Scanalyzer . | . . . Garrison Access Hacks . | . . . Unauthorized Hacks . | . . . Terminals . | . . . Fabricators . | . . . Repair Stations . | . . . Recycling Units . | . . . Scanalyzers . | . . . Garrison Access . | . . . Data Cores Recovered . | . . . Used . | . . . Hacking Detections . | . . . Full Trace Events . | . . . Feedback Events . | . . . Feedback Blocked . | . . . Robot Schematics Acquired . | . . . Robots Built . | . . . Matter . | . . . Time . | . . . Total Robot Build Rating . | . . . Part Schematics Acquired . | . . . Parts Built . | . . . Matter . | . . . Time . | . . . Total Part Build Rating . | . . . Parts Repaired . | . . . Time . | . . . Parts Recycled . | . . . Recycled Matter . | . . . Retrieved Matter . | . . . Retrieved Components . | . . . Parts Scanalyzed . | . . . Part Schematics Acquired . | . . . Parts Damaged . | . . . Bothacking | -11 -10 -10 ------------ Run | Scr Mat Min Used RIF Installer . | . . . Robots Hacked . | . . . Non-combat . | . . . Combat . | . . . Robot Hacks Applied . | . . . Relay Couplers Released . | . . . Robots Rewired . | . . . Allies Hacked . | . . . Hacks Repelled . | . . . Allies | -11 -10 -10 -------- Run | Scr Mat Min Total Allies . | . . . Largest Group . | . . . Highest-Rated Group . | . . . Highest-Rated Ally . | . . . Total Orders . | . . . Ally Attacks . | . . . Total Damage . | . . . Kills . | . . . Allies Corrupted . | . . . Allies Melted . | . . . Intel | -11 -10 -10 ------- Run | Scr Mat Min Robot Analysis Total . | . . . Derelict Logs Recovered . | . . . Drone Launches . | . . . Drone Recoveries . | . . . Exploration | -11 -10 -10 ------------- Run | Scr Mat Min Turns Passed 1256 | 60 718 478 Spaces Moved 617 | 34 342 241 Core 9 | 7 1 1 Treads 608 | 27 341 240 Legs . | . . . Wheels . | . . . Hover . | . . . Flight . | . . . Fastest Speed 50 | 50 160 180 Average Speed 179 | 137 180 184 Slowest Speed 950 | 160 750 950 Overloaded Moves . | . . . Propulsion Burnouts . | . . . Robots Hopped . | . . . Cave-ins Triggered . | . . . Exploration Rate (%) 46 | 5 80 53 Regions Visited 2 Branch Regions 1 Pre-discovered Areas . | . . . Known Exits Taken . | . . . Unknown Exits Taken 2 | 1 1 . Scrap Searched 1 | . . 1 Spaces Dug . | . . . Terrain Destroyed 149 | . 117 32 Melee . | . . . Projectile . | . . . AOE 149 | . 117 32 Actions | -11 -10 -10 --------- Run | Scr Mat Min Total 702 | 46 395 261 Wait 5 | . 1 4 Move 615 | 33 341 241 Hop . | . . . Pick Up 23 | 7 14 2 Fast Attach 3 | 3 . . Attach 8 | 3 4 1 Detach . | . . . Swap 3 | . 1 2 Drop 7 | . 7 . Fire 38 | . 27 11 Melee . | . . . Ram . | . . . Kick . | . . . Crush . | . . . Escape Stasis . | . . . Rewire . | . . . Trap . | . . . Miscellaneous . | . . . Route ------- -11/Scrapyard -10/Materials (discovered 4 exits: [*Mat x2] / *Min x2) -10/Mines (discovered 1 exit: [*Mat]) History --------- Turn | Location | Event 30 | -11/Scrapyard | Discovered new exit (range 16) 61 | -11/Scrapyard | Entered Materials 292 | -10/Materials | Discovered new exit (range 16) 312 | -10/Materials | Build established: Mutant 329 | -10/Materials | Discovered new exit (range 10) 494 | -10/Materials | Discovered new exit (range 16) 655 | -10/Materials | Discovered new exit (range 8) 779 | -10/Materials | Entered Mines 782 | -10/Mines | Met a Derelict who couldn't figure out how to use a Trap Extractor 792 | -10/Mines | Met a Derelict bent on vengeance 1018 | -10/Mines | Discovered new exit (range 12) 1149 | -10/Mines | Assembled infested the area 1203 | -10/Mines | Core integrity fell below 50% 1212 | -10/Mines | Core integrity fell below 20% 1244 | -10/Mines | Lost 3 parts (1p1n1w) 1257 | -10/Mines | Destroyed by as-82404 with Assembled Rifle Last Messages --------------- D-53 Grenadier destroyed. The unstable cave ceiling collapses. U-05 Engineer builds a Wall. The unstable cave ceiling collapses. U-05 Engineer builds a Wall. The unstable cave ceiling collapses. Acquired 93 matter. The unstable cave ceiling collapses. U-05 Engineer lays Concrete. U-05 Engineer builds a Wall. U-05 Engineer lays Concrete. The unstable cave ceiling collapses. U-05 Engineer lays Concrete. The unstable cave ceiling collapses. U-05 Engineer lays Concrete. Acquired 11 matter. Acquired 2 matter. Lgt. Treads destroyed. K-01 Serf system corrupted by crushing effect. K-01 Serf knocked back. Map ----- +----------------------------------------------------+ | ### ##??????????????????????????????????????? | | ### ##??##??????????????????????????????????? | | ### ## ###????????????????????????????????? | | ??# #??????##????????????????????????? | | ??# #????# ?????????????????????? | | ??## #### #???# ??????????????????????? | | ???#### #???# ##??? ?????????????????????? | | ??????# #???# ##???# ??????????????????????? | | ??????# #?### ???## ???????????????????????? | | #?????# #? ???# #???????????????????????? | | #?????# #? ## ??? #???????????????????????? | | #?????# #? #? ##? #???????????????????????? | | #????## ## #? ### #???????????????????????? | | #???## ## #?# ## # ##??????????????????????? | | ##### ## #?# # # ##?????????????????????? | | ## #?# # ## #?????????????????????? | | ### #?# ### #?????????????????????? | | ####### #?# ### #??????????????????????? | | ####??## ### a #????##????????????????? | | ##?????# ## ##??? ##???????????????? | | #?????## # ###??? ##??????????????? | | #????## # # # ### #??????????????? | | #????# ## # # ##?????????????? | | #???## ### # a ## ????????? | | ##### #?# ##### # ????????? | | ## ##?# @ a ????????? | | #?# ## % ????????? | | ##?# # ## ## ##?? ????????????? | | ###??####?##### #????????????????????? | | ##?????????????##### ##????????????????????? | | #??????????????????####?????????????????????? | | #???????????????????????????????????????????? | | ##???????????????????????????????????????????? | | ##????????????????????????????????????????????? | | #?????????????????????????????????????????????? | | #?????????????????????????????????????????????? | | ##?????????????????????????????????????????????? | | ###??????????????????????????????????????????????? | | ?????????????????????????????????????????????????? | | ?????????????????????????????????????????????????? | | ?????????????????????????????????????????????????? | | ?????????????????????????????????????????????????? | | | | | | | | | | | | | | | | | +----------------------------------------------------+ Best States ------------- Heat Dissipation 25 Energy Generation 10 Energy Capacity 125 Matter Stores 254 Matter Capacity 300 Sight Range 16 Terrain Scan Density 10 Evasion (%) 40 Recoil Reduction 2 Item Schematics ----------------- None Robot Schematics ------------------ None Fabricated ------------ Nothing Alien Tech Used ----------------- None Achievements -------------- None Challenges ------------ None Game ------ Seed WaveArchitectBox Manual? 0 Play Time 00:09:11 Cumulative 14.2 hours Start 2020.02.23 @ 18:21:54 End 2020.02.23 @ 18:30:47 Sessions 1 Manual Loads 0 Difficulty Rogue Special Mode None Game No. 19 Rogue 19 Adventurer 0 Explorer 0 Win Type - Total 0 Types 0/0/0/0/0/0/0 Lore% 20 Gallery% 20 Achievement% 19 Wizard Run 0 Options --------- ASCII 0 Keyboard 0 Movement Mouse Keybinds 0 Fullscreen 2 Font 24/Smallcaps Map View 76x50 Tactical HUD 0 Map Filters NONE Filters NONE Steam 1 RUN: 582e1535-d1c8-4cb0-bb9c-bc50ae6801cb